bitfinex-derivatives/quotes_BTCF0:USTF0_20251028
["timestamp","ask_amount","ask_price","bid_price","bid_amount"]
[1761682750215,7.316e-05,112760.0,112750.0,0.06653]
[1761682750216,0.17385316,112760.0,112750.0,0.06653]
[1761682750417,0.06399,112750.0,112740.0,0.05478]
[1761682750612,0.06399,112750.0,112740.0,0.001]
[1761682750823,0.48430949,112750.0,112740.0,0.01409098]
[1761682751118,0.83430949,112750.0,112740.0,0.01409098]
[1761682751316,0.93440109,112750.0,112740.0,0.01409098]
[1761682751512,0.3040816,112750.0,112740.0,0.01409098]
[1761682751813,0.80702943,112750.0,112740.0,0.01409098]
[1761682752016,0.16542994,112750.0,112740.0,0.01309098]
[1761682752412,0.68670994,112750.0,112740.0,0.01309098]
[1761682752611,0.68670994,112750.0,112720.0,0.09716348]
[1761682752612,0.06399,112730.0,112720.0,0.09716348]
[1761682752818,0.20537345,112730.0,112720.0,0.06341348]
[1761682753015,0.17388345,112730.0,112720.0,0.14997348]
[1761682753215,0.20537345,112730.0,112720.0,0.14997348]
[1761682753412,0.20537345,112730.0,112720.0,0.08656]
[1761682753725,0.06409345,112730.0,112720.0,0.08656]
[1761682753920,0.06409345,112730.0,112710.0,0.07298982]
[1761682754222,0.06399,112720.0,112710.0,0.1067923]
[1761682754828,0.06399,112720.0,112710.0,0.1395723]
[1761682755026,0.1195,112720.0,112710.0,0.0730423]
[1761682755325,0.7895,112720.0,112710.0,0.00957634]
[1761682755527,1.00249949,112720.0,112710.0,0.00957634]
[1761682755720,0.06399,112710.0,112700.0,0.06346596]
[1761682756032,0.37041637,112710.0,112700.0,0.08656]
[1761682756329,0.06894,112700.0,112690.0,0.06356284]
[1761682756527,0.06399,112700.0,112690.0,0.13009284]
[1761682756733,9.688e-05,112710.0,112700.0,0.08656]
[1761682757027,0.00916056,112710.0,112700.0,0.15002596]
[1761682757333,9.688e-05,112710.0,112700.0,0.15002596]
[1761682757521,0.18289172,112730.0,112720.0,0.08656]
[1761682757718,0.43438172,112730.0,112720.0,0.08656]
[1761682758029,0.29310172,112730.0,112720.0,0.08656]
[1761682758229,0.66342121,112730.0,112720.0,0.03375]
[1761682758424,0.66342121,112730.0,112700.0,0.22497596]
[1761682758621,0.0325,112710.0,112700.0,0.15002596]
[1761682758822,0.06399,112710.0,112700.0,0.15002596]
[1761682759132,0.06399,112710.0,112700.0,0.29146596]
[1761682759323,0.06399,112710.0,112700.0,0.228]
[1761682759519,0.00911172,112730.0,112710.0,0.06653]
[1761682759724,0.06399,112730.0,112720.0,0.08656]
[1761682760028,0.41174511,112730.0,112720.0,0.22804]
[1761682760229,0.41174511,112730.0,112710.0,0.06653]
[1761682760230,0.06399,112720.0,112710.0,0.06653]
[1761682760432,0.06399,112710.0,112700.0,0.11724596]
[1761682760734,0.06399,112710.0,112700.0,0.09721596]
[1761682760929,0.43430949,112710.0,112700.0,0.09721596]
[1761682761232,0.00892562,112730.0,112710.0,0.06653]
[1761682761423,0.06399,112730.0,112720.0,0.06653]
[1761682761622,0.43430949,112730.0,112720.0,0.06653]
[1761682761818,0.06399,112730.0,112720.0,0.08656]
[1761682762120,0.0325,112760.0,112750.0,0.06653]
[1761682762429,0.43430949,112760.0,112750.0,0.20821]
[1761682762629,0.45430949,112760.0,112740.0,0.02003]
[1761682762821,0.43430949,112750.0,112720.0,0.02003]
[1761682763018,0.0325,112730.0,112720.0,0.03375]
[1761682763216,0.06399,112710.0,112700.0,0.11724596]
[1761682763425,0.06399,112710.0,112700.0,0.09721596]
[1761682763624,0.06399,112710.0,112700.0,0.12999596]
[1761682763826,0.06399,112710.0,112700.0,0.08656]
[1761682764028,0.0325,112710.0,112700.0,0.08656]
[1761682764331,0.0325,112710.0,112700.0,0.15002596]
[1761682764530,0.06399,112710.0,112700.0,0.15002596]
[1761682764731,0.43430949,112710.0,112700.0,0.15002596]
[1761682765228,0.37031949,112710.0,112700.0,0.15002596]
[1761682765424,0.43430949,112710.0,112700.0,0.15002596]
[1761682765630,0.43430949,112710.0,112700.0,0.09721596]
[1761682766329,0.43430949,112710.0,112700.0,0.03375]
[1761682766536,0.43430949,112710.0,112700.0,0.06353944]
[1761682767024,0.43430949,112710.0,112690.0,9.688e-05]
[1761682767025,0.06399,112700.0,112690.0,0.06363632]
[1761682767224,0.08894,112700.0,112690.0,0.06365954]
[1761682767427,0.06894,112700.0,112690.0,0.06365954]
[1761682767631,0.20555,112710.0,112700.0,0.06653]
[1761682767829,0.68586949,112710.0,112700.0,0.03375]
[1761682768135,0.68586949,112710.0,112690.0,0.06365954]
[1761682768136,0.06894,112700.0,112690.0,0.06365954]
[1761682768432,0.43925949,112700.0,112690.0,0.06365954]
[1761682768820,0.43430949,112700.0,112690.0,0.06365954]
[1761682769016,0.11162,112700.0,112690.0,0.06365954]
[1761682769223,1.09925949,112700.0,112690.0,0.06365954]
[1761682769430,1.47193949,112700.0,112690.0,0.06365954]
[1761682769628,0.06399,112690.0,112680.0,0.07936587]
[1761682769833,1.24574949,112690.0,112680.0,0.07936587]
[1761682770326,0.87543,112690.0,112680.0,0.07936587]
[1761682770526,0.96574949,112690.0,112680.0,0.11311587]
[1761682770728,0.54434531,112690.0,112680.0,0.16592587]
[1761682770936,8.582e-05,112690.0,112680.0,0.10236321]
[1761682771141,0.37040531,112690.0,112680.0,0.10236321]
[1761682771434,8.582e-05,112690.0,112680.0,0.10236321]
[1761682771636,0.1739,112730.0,112720.0,0.03375]
[1761682771837,1.09421949,112730.0,112720.0,0.08656]
[1761682772027,0.7239,112730.0,112720.0,0.06653]
[1761682772227,0.7239,112730.0,112720.0,0.08656]
[1761682772228,0.25,112730.0,112720.0,0.08656]
[1761682772424,0.62031949,112730.0,112720.0,0.08656]
[1761682772729,0.37031949,112730.0,112720.0,0.15018963]
[1761682772927,0.09117113,112760.0,112720.0,0.15018963]
[1761682773225,0.0325,112740.0,112730.0,0.06653]
[1761682773425,0.06399,112720.0,112710.0,0.06362963]
[1761682773622,0.05961,112710.0,112700.0,0.06362963]
[1761682773828,0.15764,112740.0,112700.0,0.14341963]
[1761682773829,0.15496,112740.0,112700.0,0.14341963]
[1761682774041,0.05961,112720.0,112710.0,0.06366006]
[1761682774335,0.05961,112710.0,112680.0,0.25659536]
[1761682774639,0.15496,112740.0,112700.0,0.14346054]
[1761682774846,0.693,112740.0,112700.0,0.07979]
[1761682775136,0.582,112740.0,112700.0,0.22179]
[1761682775434,0.395,112740.0,112700.0,0.01813]
[1761682775640,0.40016949,112710.0,112700.0,0.07979]
[1761682775837,0.05961,112700.0,112690.0,0.03117]
[1761682776027,0.42992949,112700.0,112690.0,0.06166]
[1761682776225,0.42992949,112700.0,112680.0,0.11755536]
[1761682776436,0.00801,112720.0,112680.0,0.11755536]
[1761682776437,0.42992949,112690.0,112680.0,0.04997321]
[1761682776737,0.05961,112690.0,112680.0,0.09859321]
[1761682776940,0.42992949,112690.0,112680.0,0.08046321]
[1761682777139,0.438859,112690.0,112680.0,0.01580321]
[1761682777433,0.580939,112690.0,112680.0,0.01580321]
[1761682777637,0.600939,112690.0,112680.0,0.01580321]
[1761682777836,0.21061951,112690.0,112680.0,0.01580321]
[1761682778134,0.850939,112690.0,112680.0,0.01201281]
[1761682778339,0.850939,112690.0,112660.0,0.01215]
[1761682778340,0.05961,112670.0,112660.0,0.01215]
[1761682778538,0.24161,112670.0,112660.0,0.01215]
[1761682778835,0.05961,112650.0,112640.0,0.10989215]
[1761682779037,0.01791,112680.0,112650.0,0.06166]
[1761682779240,0.42992949,112660.0,112650.0,0.14128505]
[1761682779436,0.1422,112670.0,112660.0,0.07979]
[1761682779643,0.37031949,112670.0,112660.0,0.07979]
[1761682779829,0.42992949,112670.0,112660.0,0.15941505]
[1761682780034,0.42992949,112670.0,112660.0,0.07962505]
[1761682780233,0.05961,112660.0,112650.0,0.11079505]
[1761682780539,0.02985,112660.0,112650.0,0.14128505]
[1761682780740,0.44509949,112660.0,112650.0,0.07962505]
[1761682780948,0.05961,112650.0,112640.0,0.07962505]
[1761682781240,0.51247949,112660.0,112650.0,0.06166]
[1761682781437,0.21205626,112670.0,112660.0,0.06166]
[1761682781646,0.05961,112660.0,112650.0,0.07961725]
[1761682781841,0.42992949,112660.0,112650.0,0.07961725]
[1761682782138,0.37031949,112660.0,112650.0,0.005]
[1761682782340,0.05961,112630.0,112620.0,0.40957018]
[1761682782643,0.9622,112630.0,112580.0,0.01813]
[1761682782844,0.94621957,112630.0,112580.0,0.07979]
[1761682783036,0.37031949,112590.0,112580.0,0.07979]
[1761682783237,0.37031949,112590.0,112580.0,0.10384918]
[1761682783442,0.51339949,112600.0,112590.0,0.06166]
[1761682783642,0.16308,112600.0,112590.0,0.11082675]
[1761682783850,0.7383059,112600.0,112590.0,0.0983725]
[1761682784046,1.2209859,112600.0,112590.0,0.0983725]
[1761682784250,1.2209859,112600.0,112540.0,0.03028]
[1761682784251,0.0200646,112600.0,112540.0,0.03028]
[1761682784451,0.27758065,112550.0,112540.0,0.09194]
[1761682784644,0.28026065,112600.0,112560.0,0.01813]
[1761682784834,0.85758065,112600.0,112570.0,0.145]
[1761682785143,0.27758065,112580.0,112570.0,0.06166]
[1761682785351,0.16,112580.0,112570.0,0.14496]
[1761682785547,0.46026065,112580.0,112560.0,0.01813]
[1761682785754,0.27758065,112570.0,112560.0,0.01813]
[1761682786048,0.27767818,112570.0,112560.0,0.01813]
[1761682786739,0.55793883,112570.0,112540.0,0.03028]
[1761682787041,0.5551613,112550.0,112540.0,0.01215]
[1761682787436,9.753e-05,112550.0,112540.0,0.01215]
[1761682787634,0.27767818,112550.0,112540.0,0.01215]
[1761682787837,0.27767818,112550.0,112540.0,0.07381]
[1761682788034,0.07274372,112570.0,112560.0,0.03117]
[1761682788241,0.27758065,112570.0,112560.0,0.07979]
[1761682788436,0.28660088,112600.0,112590.0,0.01813]
[1761682788642,0.28660088,112600.0,112560.0,0.01813]
[1761682788643,1.13418153,112600.0,112560.0,0.01813]
[1761682788847,0.27758065,112570.0,112560.0,0.01813]
[1761682789037,0.29758065,112570.0,112540.0,0.03415]
[1761682789237,0.14552,112590.0,112560.0,0.01813]
[1761682789437,0.42552,112590.0,112560.0,0.01813]
[1761682789641,0.27758065,112570.0,112560.0,0.01813]
[1761682789848,0.27758065,112570.0,112560.0,0.0493]
[1761682790046,0.27758065,112570.0,112540.0,0.03415]
[1761682790047,0.27858065,112570.0,112540.0,0.12524]
[1761682790251,0.27758065,112560.0,112550.0,0.06166]
[1761682790443,0.001,112570.0,112560.0,0.0493]
[1761682790644,0.5044444,112600.0,112560.0,0.07979]
[1761682790853,0.27758065,112570.0,112560.0,0.07979]
[1761682791044,0.27758065,112570.0,112540.0,0.01028]
[1761682791242,0.27758065,112550.0,112540.0,0.01028]
[1761682791637,0.14872,112550.0,112510.0,0.06914203]
[1761682791839,0.65604,112550.0,112510.0,0.06740295]
[1761682792046,0.27758065,112520.0,112510.0,0.21428295]
[1761682792250,0.08086375,112600.0,112530.0,0.01813]
[1761682792251,0.14704,112570.0,112530.0,0.01813]
[1761682792443,0.68804,112570.0,112560.0,0.01813]
[1761682792641,0.68804,112570.0,112560.0,0.07979]
[1761682792642,0.541,112570.0,112560.0,0.07979]
[1761682792855,0.27858065,112570.0,112560.0,0.07979]
[1761682793049,0.001,112570.0,112560.0,0.07979]
[1761682793352,0.27758065,112600.0,112560.0,0.01813]
[1761682793548,0.27758065,112570.0,112560.0,0.07979]
[1761682793744,0.27764771,112570.0,112560.0,0.01813]
[1761682794254,6.706e-05,112570.0,112560.0,0.079596]
[1761682794460,0.27764771,112570.0,112560.0,0.079596]
[1761682794748,6.706e-05,112570.0,112560.0,0.226916]
[1761682795150,0.08082282,112600.0,112590.0,0.06166]
[1761682795151,0.00909288,112600.0,112590.0,0.06166]
[1761682795350,0.27758065,112650.0,112590.0,0.22707]
[1761682795672,0.90758065,112650.0,112620.0,0.01813]
[1761682795845,0.27758065,112630.0,112620.0,0.01813]
[1761682796039,0.27758065,112630.0,112620.0,0.01938517]
[1761682796040,0.35758065,112630.0,112620.0,0.01938517]
[1761682796245,0.0889774,112630.0,112620.0,0.01938517]
[1761682796445,1.0742187,112630.0,112590.0,0.01813]
[1761682796649,0.1786987,112630.0,112590.0,0.0493]
[1761682796950,0.149,112670.0,112660.0,0.06166]
[1761682797153,0.27758065,112680.0,112670.0,0.03117]
[1761682797352,0.07027426,112690.0,112680.0,0.01813]
[1761682797649,0.02630916,112690.0,112680.0,0.07979]
[1761682797953,0.44970459,112690.0,112680.0,0.07979]
[1761682798154,0.50373506,112690.0,112680.0,0.0493]
[1761682798347,0.52373506,112690.0,112680.0,0.01813]
[1761682798548,0.49868924,112690.0,112650.0,0.01813]
[1761682798751,0.02583943,112680.0,112650.0,0.01813]
[1761682798944,0.27758065,112660.0,112650.0,0.01813]
[1761682799260,0.14908,112670.0,112650.0,0.01813]
[1761682799551,0.27758065,112660.0,112650.0,0.01813]
[1761682799752,0.3137949,112660.0,112650.0,0.01813]
[1761682799960,0.3037949,112660.0,112650.0,0.07979]
[1761682800251,0.02515943,112690.0,112680.0,0.07979]
[1761682800445,0.02315943,112700.0,112690.0,0.06166]
[1761682800646,0.12163943,112700.0,112690.0,0.06166]
[1761682800844,0.38500648,112700.0,112690.0,0.06166]
[1761682801154,0.43857173,112700.0,112680.0,0.01813]
[1761682801345,0.4575059,112690.0,112680.0,0.01813]
[1761682801955,0.3384659,112690.0,112680.0,0.01813]
[1761682802149,0.6174659,112690.0,112650.0,0.01813]
[1761682802350,0.02314892,112670.0,112650.0,0.01813]
[1761682802550,0.17214892,112660.0,112650.0,0.01813]
[1761682802855,0.02314892,112660.0,112650.0,0.07979]
[1761682803053,0.30072957,112680.0,112670.0,0.03117]
[1761682803248,0.63968957,112680.0,112650.0,0.01813]
[1761682803444,0.27758065,112670.0,112660.0,0.03117]
[1761682803653,0.02314892,112670.0,112660.0,0.03117]
[1761682803844,0.30072957,112680.0,112660.0,0.08477]
[1761682804046,0.16,112680.0,112670.0,0.10579]
[1761682804249,0.02314892,112720.0,112680.0,0.13864]
[1761682804456,0.54314892,112720.0,112700.0,0.10579]
[1761682804662,0.31314892,112720.0,112710.0,0.13864]
[1761682804852,0.02314892,112730.0,112710.0,0.36403065]
[1761682805052,0.02314892,112740.0,112730.0,0.05219]
[1761682805358,0.02314892,112740.0,112730.0,0.10579]
[1761682805560,0.03442892,112740.0,112730.0,0.0536]
[1761682805758,0.14904,112740.0,112730.0,0.10847]
[1761682806146,0.02314892,112760.0,112740.0,0.13864]
[1761682806551,0.14892,112750.0,112740.0,0.13864]
[1761682806746,0.05403417,112760.0,112750.0,0.10579]
[1761682806953,0.17202892,112760.0,112750.0,0.10579]
[1761682807154,0.17202892,112760.0,112740.0,0.03285]
[1761682807356,0.21291417,112760.0,112740.0,0.03285]
[1761682807664,0.21291417,112760.0,112710.0,1.53285]
[1761682807665,0.43540102,112750.0,112710.0,1.53285]
[1761682807856,0.05412797,112740.0,112730.0,0.05219]
[1761682808054,0.0231977,112750.0,112740.0,0.13864]
[1761682808452,0.0231977,112760.0,112740.0,0.13864]
[1761682808657,0.02320037,112760.0,112750.0,0.05219]
[1761682808856,0.17204037,112760.0,112740.0,0.03285]
[1761682809054,0.22297064,112760.0,112740.0,0.03285]
[1761682809259,0.02320037,112760.0,112750.0,0.04907]
[1761682809457,0.17192037,112760.0,112750.0,0.04907]
[1761682809661,0.17292037,112760.0,112750.0,0.04907]
[1761682809865,0.02420037,112760.0,112750.0,0.04907]
[1761682810158,0.14968,112760.0,112750.0,0.09917]
[1761682810459,0.01706,112750.0,112710.0,0.03285]
[1761682810761,0.02317852,112730.0,112710.0,0.03285]
[1761682810948,0.14884,112720.0,112710.0,0.03285]
[1761682811155,0.20292322,112720.0,112680.0,0.03285]
[1761682811456,0.1488,112710.0,112700.0,0.09917]
[1761682811651,0.1488,112710.0,112700.0,0.04907]
[1761682811853,0.17197852,112710.0,112680.0,0.03285]
[1761682812154,0.17193852,112700.0,112680.0,0.03285]
[1761682812457,0.02317852,112690.0,112660.0,9.52e-05]
[1761682812658,0.14876,112680.0,112670.0,0.09917]
[1761682812848,0.17519722,112680.0,112670.0,0.09917]
[1761682814163,0.02643722,112680.0,112670.0,0.09917]
[1761682814359,0.17495722,112680.0,112670.0,0.09917]
[1761682814757,0.17895722,112680.0,112670.0,0.09917]
[1761682815264,0.17895722,112680.0,112660.0,9.52e-05]
[1761682815265,0.20213574,112680.0,112660.0,9.52e-05]
[1761682815456,0.20213574,112680.0,112620.0,0.02954]
[1761682815457,0.04030192,112670.0,112620.0,0.02954]
[1761682815659,0.14844,112660.0,112620.0,0.02954]
[1761682815859,0.19805574,112660.0,112620.0,0.02954]
[1761682816163,0.04961574,112660.0,112650.0,0.12871]
[1761682816463,6.34e-05,112670.0,112660.0,0.09917]
[1761682816652,0.17493712,112670.0,112660.0,0.10185]
[1761682817058,0.17493712,112670.0,112660.0,0.09917]
[1761682817461,0.17493712,112670.0,112650.0,0.02954]
[1761682817764,0.19811564,112670.0,112650.0,0.02954]
[1761682817966,0.04967564,112670.0,112650.0,0.02954]
[1761682818177,0.04967564,112670.0,112660.0,0.04907]
[1761682818468,0.20003564,112670.0,112650.0,0.02954]
[1761682819063,0.05167564,112670.0,112650.0,0.02954]
[1761682819568,0.14832,112660.0,112650.0,0.12871]
[1761682819867,0.02643372,112660.0,112650.0,0.12871]
[1761682820065,0.02524192,112670.0,112660.0,0.09917]
[1761682820066,0.0020634,112670.0,112660.0,0.09917]
[1761682820259,0.1502634,112670.0,112660.0,0.10185]
[1761682820459,0.00878536,112690.0,112680.0,0.12871]
[1761682820654,0.02317852,112700.0,112690.0,0.09917]
[1761682820855,0.17465971,112700.0,112690.0,0.09917]
[1761682821367,0.02641971,112700.0,112690.0,0.09917]
[1761682821662,0.02641971,112700.0,112690.0,0.70185]
[1761682821868,0.02317852,112730.0,112710.0,0.12871]
[1761682822069,0.10756,112720.0,112710.0,0.12871]
[1761682822367,0.14138447,112720.0,112680.0,0.03054]
[1761682822569,0.009,112700.0,112690.0,0.09917]
[1761682823069,0.15719211,112720.0,112710.0,0.12871]
[1761682823468,0.15719211,112720.0,112710.0,0.72871]
[1761682823767,0.15719211,112720.0,112710.0,0.12871]
[1761682823969,0.15719211,112720.0,112710.0,0.13139]
[1761682824160,0.15719211,112720.0,112710.0,0.12871]
[1761682824761,0.16619211,112720.0,112710.0,0.12871]
[1761682825162,0.01803211,112720.0,112710.0,0.12871]
[1761682825358,0.16603211,112720.0,112710.0,0.12871]
[1761682825559,0.18723211,112720.0,112680.0,0.02954]
[1761682825766,0.59681509,112720.0,112680.0,0.02954]
[1761682825962,0.0106,112690.0,112650.0,0.03857995]
[1761682826167,0.14808595,112680.0,112670.0,0.09917]
[1761682826362,4.595e-05,112680.0,112670.0,0.09917]
[1761682826563,4.595e-05,112680.0,112670.0,0.69917]
[1761682826776,0.09580595,112680.0,112670.0,0.09917]
[1761682827672,0.10473385,112680.0,112670.0,0.09917]
[1761682828071,0.10673385,112680.0,112670.0,0.09917]
[1761682828270,0.11733385,112680.0,112650.0,0.02954]
[1761682829668,0.14051237,112680.0,112650.0,0.02954]
[1761682830068,0.01097385,112680.0,112670.0,0.09917]
[1761682830264,0.00204595,112680.0,112670.0,0.09917]
[1761682830469,4.595e-05,112680.0,112670.0,0.09917]
[1761682830865,0.14896595,112680.0,112670.0,0.10185]
[1761682831072,0.00204595,112680.0,112670.0,0.10185]
[1761682831268,0.01304595,112680.0,112670.0,0.10185]
[1761682831569,0.10684595,112680.0,112670.0,0.09917]
[1761682831771,0.00204595,112680.0,112670.0,0.10185]
[1761682831967,0.15472595,112680.0,112670.0,0.09917]
[1761682832173,0.00804595,112680.0,112670.0,0.10185]
[1761682832360,0.00604595,112680.0,112670.0,0.09917]
[1761682832564,0.00604595,112680.0,112670.0,0.10185]
[1761682832772,0.00604595,112680.0,112670.0,0.09917]
[1761682832973,0.00604595,112680.0,112670.0,0.10185]
[1761682833767,0.00604595,112680.0,112670.0,0.09917]
[1761682833975,0.00604595,112680.0,112670.0,0.10185]
[1761682834276,0.00604595,112680.0,112670.0,0.37887392]
[1761682834467,0.00604595,112680.0,112670.0,0.10185]
[1761682834667,0.00604595,112680.0,112670.0,0.09917]
[1761682835272,0.15368595,112680.0,112670.0,0.09917]
[1761682835467,0.44130987,112680.0,112670.0,0.09917]
[1761682835663,0.46739408,112680.0,112650.0,0.02954]
[1761682835867,0.27702392,112670.0,112650.0,0.02954]
[1761682836064,0.02609134,112670.0,112650.0,0.02954]
[1761682836384,0.27702392,112660.0,112650.0,0.02954]
[1761682836675,0.15368595,112680.0,112660.0,0.05022]
[1761682836676,0.27702392,112670.0,112660.0,0.05022]
[1761682836972,0.28306987,112680.0,112660.0,0.09965]
[1761682837177,0.42454392,112670.0,112660.0,0.09965]
[1761682837474,0.45060716,112670.0,112660.0,0.09965]
[1761682837873,0.45144716,112670.0,112650.0,0.025]
[1761682838169,0.45144716,112670.0,112620.0,0.02954]
[1761682838170,0.61085701,112660.0,112620.0,0.02954]
[1761682838370,0.27702392,112630.0,112600.0,9.661e-05]
[1761682838570,0.27702392,112610.0,112600.0,0.09974661]
[1761682838775,0.27702392,112610.0,112600.0,0.05031661]
[1761682838965,0.27702392,112610.0,112600.0,9.661e-05]
[1761682839470,0.02604742,112610.0,112600.0,9.661e-05]
[1761682839670,0.30307134,112610.0,112600.0,9.661e-05]
[1761682839882,0.30307134,112610.0,112560.0,0.02954]
[1761682839883,0.02604742,112610.0,112560.0,0.02954]
[1761682840177,0.1474,112600.0,112560.0,0.02954]
[1761682840363,0.17344742,112600.0,112560.0,1.52954]
[1761682840562,0.17344742,112600.0,112580.0,0.00120996]
[1761682840762,6.581e-05,112590.0,112580.0,0.05142996]
[1761682840966,6.581e-05,112590.0,112580.0,0.10085996]
[1761682841178,0.14742581,112590.0,112580.0,0.10143056]
[1761682841480,0.14742581,112590.0,112580.0,0.00178056]
[1761682841671,0.17343828,112590.0,112580.0,0.00178056]
[1761682842873,0.02607828,112590.0,112580.0,0.00178056]
[1761682843082,0.02707828,112590.0,112580.0,0.01178056]
[1761682843264,0.17419828,112590.0,112580.0,0.01178056]
[1761682843669,0.02607828,112590.0,112580.0,0.00178056]
[1761682843874,0.17311828,112590.0,112580.0,0.00178056]
[1761682844270,0.02607828,112590.0,112580.0,0.00178056]
[1761682844473,0.02707828,112590.0,112580.0,0.00178056]
[1761682844679,0.19607828,112590.0,112580.0,0.00378056]
[1761682845278,0.04907828,112590.0,112580.0,0.10343056]
[1761682845683,0.02306581,112590.0,112580.0,0.10611056]
[1761682845867,0.02317852,112640.0,112620.0,0.07814]
[1761682846072,0.17295216,112640.0,112620.0,0.07814]
[1761682846275,0.03456877,112640.0,112630.0,0.05200056]
[1761682846674,0.05641877,112640.0,112630.0,0.05200056]
[1761682846876,0.14711675,112640.0,112630.0,0.10143056]
[1761682847071,0.14707675,112640.0,112630.0,0.10143056]
[1761682847380,0.25663599,112640.0,112630.0,0.00178056]
[1761682847568,0.02185,112630.0,112620.0,0.003]
[1761682847880,0.06687852,112630.0,112620.0,0.003]
[1761682848190,0.21659924,112630.0,112620.0,0.003]
[1761682849183,0.31659924,112630.0,112590.0,0.02792]
[1761682850087,0.33927924,112630.0,112590.0,0.02792]
[1761682850277,0.33659924,112630.0,112590.0,0.02792]
[1761682850478,0.0437,112600.0,112590.0,0.001]
[1761682850678,0.04377675,112600.0,112590.0,0.001]
[1761682851078,0.0437,112570.0,112530.0,1.52801636]
[1761682851280,0.06859551,112600.0,112530.0,1.52801636]
[1761682851281,7.675e-05,112560.0,112530.0,1.52801636]
[1761682851482,7.675e-05,112560.0,112530.0,0.02801636]
[1761682851684,0.15700034,112560.0,112530.0,0.02801636]
[1761682852078,0.02185,112540.0,112530.0,9.636e-05]
[1761682852277,0.14676,112540.0,112530.0,0.07823636]
[1761682852481,0.19046,112540.0,112530.0,9.636e-05]
[1761682853390,0.19052364,112540.0,112530.0,9.636e-05]
[1761682853684,0.31052364,112540.0,112530.0,9.636e-05]
[1761682853986,0.31052364,112540.0,112530.0,0.06009636]
[1761682853987,0.29352364,112540.0,112530.0,0.06009636]
[1761682854183,0.19372364,112540.0,112530.0,0.06009636]
[1761682854788,0.20640364,112540.0,112530.0,0.06009636]
[1761682854984,0.19640364,112540.0,112530.0,0.06009636]
[1761682855185,0.19372364,112540.0,112530.0,0.06009636]
[1761682855384,0.19064364,112540.0,112530.0,9.636e-05]
[1761682855585,0.29064364,112540.0,112530.0,9.636e-05]
[1761682856090,0.0437,112530.0,112520.0,0.0249]
[1761682856986,0.08279313,112560.0,112520.0,0.12455]
[1761682857190,0.02185,112530.0,112520.0,0.07512]
[1761682857388,0.19068489,112530.0,112520.0,0.0249]
[1761682857588,0.14698489,112530.0,112520.0,0.12455]
[1761682857887,0.16883489,112530.0,112520.0,0.07512]
[1761682858190,0.00010489,112530.0,112520.0,0.12455]
[1761682858492,0.14998489,112530.0,112520.0,0.15955]
[1761682859889,0.00310489,112530.0,112520.0,0.15955]
[1761682860292,1e-08,112530.0,112520.0,0.16223]
[1761682860491,1e-08,112530.0,112520.0,0.251107]
[1761682860694,1e-08,112530.0,112520.0,0.30895]
[1761682860890,1e-08,112530.0,112520.0,0.39781914]
[1761682861086,1e-08,112530.0,112520.0,0.16223]
[1761682861299,0.06935529,112580.0,112530.0,0.02792]
[1761682861492,0.14672,112570.0,112530.0,0.02792]
[1761682861687,0.37247712,112560.0,112530.0,0.02792]
[1761682861892,0.0437,112530.0,112520.0,0.0599]
[1761682862197,0.37247712,112540.0,112520.0,0.15955]
[1761682862390,0.14672,112530.0,112520.0,0.15955]
[1761682862590,0.16857,112530.0,112520.0,0.11012]
[1761682862891,0.14672,112530.0,112520.0,0.12455]
[1761682863097,0.37247712,112550.0,112530.0,0.02792]
[1761682863393,0.38286179,112570.0,112540.0,0.05022]
[1761682863594,0.38286179,112570.0,112560.0,0.12757]
[1761682863796,0.56054179,112570.0,112530.0,0.02792]
[1761682864099,0.38286179,112570.0,112530.0,0.11777]
[1761682864286,0.01038467,112570.0,112560.0,0.06962]
[1761682864484,0.16502,112570.0,112560.0,0.02518]
[1761682864688,0.16502,112570.0,112530.0,0.02792]
[1761682865100,0.37247712,112560.0,112530.0,0.02792]
[1761682865286,0.00919,112540.0,112530.0,0.02792]
[1761682865597,0.14656,112550.0,112540.0,0.08985]
[1761682865598,0.1466,112550.0,112540.0,0.08985]
[1761682865898,0.58971704,112610.0,112560.0,0.11503]
[1761682865899,0.02317852,112600.0,112560.0,0.11503]
[1761682866100,0.001,112570.0,112560.0,0.12703]
[1761682866791,0.01938,112570.0,112560.0,0.03718]
[1761682867103,0.02696746,112570.0,112560.0,0.12703]
[1761682867293,0.09509317,112600.0,112590.0,0.06962]
[1761682867599,0.43600487,112600.0,112560.0,0.02518]
[1761682867784,0.43600487,112600.0,112560.0,0.02786]
[1761682867785,0.29961174,112600.0,112560.0,0.02786]
[1761682867989,0.28123174,112600.0,112560.0,0.02518]
[1761682868291,0.001,112570.0,112560.0,0.11045]
[1761682869398,0.002,112570.0,112560.0,0.12345]
[1761682869896,0.001,112570.0,112560.0,0.12345]
[1761682870399,0.02700215,112570.0,112560.0,0.12345]
[1761682870988,0.02800215,112570.0,112560.0,0.12345]
[1761682871193,0.21228067,112570.0,112560.0,0.03818]
[1761682871401,0.21228067,112570.0,112560.0,0.013]
[1761682871897,0.05118067,112570.0,112560.0,0.12318]
[1761682872099,0.05118067,112570.0,112560.0,0.72586]
[1761682872305,0.02800215,112570.0,112560.0,0.72318]
[1761682872896,0.02800215,112570.0,112560.0,0.12318]
[1761682873104,0.05118067,112570.0,112560.0,0.12318]
[1761682873803,0.21224067,112570.0,112560.0,0.013]
[1761682874003,0.24314537,112570.0,112560.0,0.013]
[1761682874204,0.24314537,112570.0,112530.0,0.02792]
[1761682874205,0.32996685,112570.0,112530.0,0.02792]
[1761682874404,0.02319092,112560.0,112530.0,0.02792]
[1761682874595,0.04919307,112560.0,112530.0,0.02792]
[1761682874902,0.04919307,112560.0,112540.0,0.08527]
[1761682875102,0.04919307,112560.0,112550.0,0.08527]
[1761682875295,0.02600215,112560.0,112550.0,0.08527]
[1761682875494,0.02600215,112560.0,112550.0,0.08795]
[1761682875997,0.02319092,112580.0,112570.0,0.08527]
[1761682876203,0.0309047,112590.0,112560.0,0.02491]
[1761682876204,0.02319092,112590.0,112580.0,0.08527]
[1761682876597,0.0309047,112600.0,112590.0,0.08527]
[1761682876598,0.02319092,112600.0,112590.0,0.08527]
[1761682876999,0.31146175,112600.0,112560.0,0.02353]
[1761682877193,0.0888371,112570.0,112560.0,0.1088]
[1761682877398,0.11204854,112590.0,112560.0,0.1088]
[1761682877399,0.11204304,112590.0,112580.0,0.08527]
[1761682877907,0.11204304,112590.0,112580.0,0.08795]